bitfinex-derivatives/quotes_ETHF0:USTF0_20251007
["timestamp","ask_amount","ask_price","bid_price","bid_amount"]
[1759861804464,1.3745,4463.0,4462.9,0.92732]
[1759861804659,0.931,4463.0,4462.9,0.92732]
[1759861804964,0.931,4463.0,4462.9,1.09112]
[1759861805164,3.2078,4463.1,4463.0,0.688]
[1759861805466,4.7749,4463.1,4463.0,0.7552]
[1759861806766,4.7749,4463.1,4463.0,0.5242]
[1759861806968,4.7749,4463.1,4463.0,0.7552]
[1759861807168,4.7749,4463.1,4463.0,0.5242]
[1759861807462,4.7749,4463.1,4463.0,0.7552]
[1759861808166,4.3024,4463.1,4463.0,0.7552]
[1759861810067,3.6513,4463.9,4463.8,1.27454]
[1759861810370,3.2078,4463.9,4463.8,2.21094]
[1759861810671,3.6513,4463.9,4463.8,2.21094]
[1759861811863,3.2078,4463.9,4463.8,2.21094]
[1759861812259,3.6828796,4463.9,4463.8,2.21094]
[1759861812863,0.00281568,4464.0,4463.8,1.50554]
[1759861813168,0.00281568,4464.0,4463.9,1.5769]
[1759861813562,4.3024,4464.9,4464.8,1.27445]
[1759861813763,4.77744904,4464.9,4464.8,1.50545]
[1759861813964,4.77744904,4464.9,4464.8,2.21085]
[1759861814569,4.77976441,4464.9,4464.8,2.2125173]
[1759861815171,0.47736441,4464.9,4464.8,2.2125173]
[1759861815762,0.47736441,4464.9,4464.8,2.31850095]
[1759861816863,0.47736441,4464.9,4464.8,2.2125173]
[1759861817064,0.47736441,4464.9,4464.8,2.32113042]
[1759861817971,0.00231537,4464.9,4464.8,2.32113042]
[1759861818167,3.2078,4465.4,4465.3,0.4029]
[1759861818371,3.2078,4465.4,4465.3,2.2108]
[1759861819271,3.20962575,4465.4,4465.3,2.2108]
[1759861822870,2.57843551,4465.4,4465.3,2.2108]
[1759861823065,0.00182575,4465.4,4465.3,2.2108]
[1759861823266,3.2078,4465.9,4465.8,0.40286]
[1759861823466,3.2078,4465.9,4465.8,2.21076]
[1759861824367,3.20940887,4465.9,4465.8,2.21076]
[1759861825363,3.20940887,4465.9,4465.8,1.27436]
[1759861825364,4.77650887,4465.9,4465.8,1.27436]
[1759861825565,4.77650887,4465.9,4465.8,0.63386]
[1759861825964,4.77650887,4465.9,4465.8,1.06406]
[1759861826170,4.77650887,4465.9,4465.8,2.21076]
[1759861826371,4.30400887,4465.9,4465.8,2.21076]
[1759861826670,4.77650887,4465.9,4465.8,0.83306]
[1759861826875,4.77650887,4465.9,4465.8,1.06406]
[1759861827278,4.77650887,4465.9,4465.8,1.50536]
[1759861828076,4.30400887,4465.9,4465.8,2.21076]
[1759861828273,3.86050887,4465.9,4465.8,2.21076]
[1759861828477,3.20940887,4465.9,4465.8,2.21076]
[1759861830176,4.77650887,4465.9,4465.8,0.40286]
[1759861830368,4.77650887,4465.9,4465.8,0.63386]
[1759861831682,4.77650887,4465.9,4465.8,1.06406]
[1759861832582,4.77650887,4465.9,4465.8,1.27436]
[1759861832878,3.20940887,4465.9,4465.8,1.97016]
[1759861833077,3.20940887,4465.9,4465.8,2.20116]
[1759861833270,0.00160887,4465.9,4465.8,2.20116]
[1759861833582,1.12850887,4465.9,4465.8,2.20116]
[1759861834176,0.00160887,4465.9,4465.8,2.20116]
[1759861834983,0.00160887,4465.9,4465.8,1.97016]
[1759861835184,1.58920887,4465.9,4465.8,1.50536]
[1759861835386,1.12850887,4465.9,4465.8,2.20116]
[1759861835579,0.00160887,4465.9,4465.8,2.20116]
[1759861840387,1.14240887,4465.9,4465.8,2.20016]
[1759861841079,0.4553,4465.1,4465.0,0.86073]
[1759861841281,1.572,4465.1,4465.0,1.51923]
[1759861841477,4.7798,4465.1,4465.0,0.4578]
[1759861841788,1.572,4464.9,4464.8,0.0016673]
[1759861842192,1.572,4464.9,4464.8,0.2316673]
[1759861842584,1.572,4464.9,4464.8,0.0016673]
[1759861842786,1.572,4464.9,4464.8,0.4594673]
[1759861842981,1.1408,4464.9,4464.8,1.1179673]
[1759861843188,1.1408,4464.9,4464.8,1.7853673]
[1759861843590,1.572,4464.9,4464.8,1.1179673]
[1759861844792,1.572,4464.9,4464.8,1.7853673]
[1759861844987,1.1408,4464.9,4464.8,1.7853673]
[1759861845190,1.572,4464.9,4464.8,1.1179673]
[1759861846279,1.572,4464.9,4464.8,2.32479754]
[1759861847286,1.572,4464.9,4464.8,1.1179673]
[1759861847479,1.1408,4464.9,4464.8,1.7853673]
[1759861848683,0.2528,4465.0,4464.8,1.7853673]
[1759861848890,3.2078,4465.1,4465.0,1.5537]
[1759861849189,1.1408,4465.3,4465.2,0.8863]
[1759861849388,1.1408,4465.3,4465.2,1.1163]
[1759861849589,1.572,4465.3,4465.2,1.1163]
[1759861851283,1.572,4465.3,4465.2,0.23]
[1759861853292,1.572,4465.3,4465.2,0.6878]
[1759861854993,1.572,4465.3,4465.2,0.23]
[1759861855687,1.572,4465.3,4465.2,1.1163]
[1759861856195,1.572,4465.3,4465.2,1.51921]
[1759861857196,1.572,4465.3,4465.2,2.18661]
[1759861857489,1.572,4465.3,4465.2,0.4578]
[1759861857698,1.572,4465.3,4465.2,0.63291]
[1759861858195,1.572,4465.3,4465.2,1.09071]
[1759861858391,1.572,4465.3,4465.2,1.51921]
[1759861859593,0.6855,4465.3,4465.2,2.18661]
[1759861859790,1.8248,4465.5,4465.4,1.28919]
[1759861860494,1.1408,4465.5,4465.4,1.95659]
[1759861860697,0.6855,4465.5,4465.4,1.95659]
[1759861860896,1.1408,4465.5,4465.4,1.95659]
[1759861861096,1.3936,4465.5,4465.4,1.95659]
[1759861861293,1.8248,4465.5,4465.4,1.51919]
[1759861861591,1.3936,4465.5,4465.4,2.18659]
[1759861861793,3.2078,4466.9,4465.9,1.00712]
[1759861861999,1.8248,4467.0,4466.9,0.8863]
[1759861862297,2.2907212,4467.0,4466.9,1.1163]
[1759861862495,2.2907212,4467.0,4466.9,0.8863]
[1759861862695,2.2907212,4467.0,4466.9,1.7817]
[1759861862894,0.46852816,4467.0,4466.9,1.7817]
[1759861864094,0.00260696,4467.0,4466.9,6.7817]
[1759861864798,0.022,4467.9,4467.8,1.95198]
[1759861864987,0.022,4467.9,4467.8,2.18198]
[1759861865196,1.1533,4467.9,4467.8,2.18198]
[1759861865399,0.022,4467.9,4467.8,2.18198]
[1759861865602,0.69568817,4467.9,4467.8,2.18198]
[1759861865903,1.15488817,4467.9,4467.8,2.18198]
[1759861866305,0.7263,4467.5,4467.4,0.84711]
[1759861866496,0.7263,4467.5,4467.4,0.40271]
[1759861866497,1.1855,4467.5,4467.4,0.40271]
[1759861866802,1.8576,4467.5,4467.4,1.07711]
[1759861868506,0.02358817,4467.9,4467.4,1.7793]
[1759861868800,0.2704,4467.5,4467.0,0.6654]
[1759861868997,0.4592,4467.4,4467.3,0.8839]
[1759861869205,1.5872,4467.4,4467.2,0.40273]
[1759861869506,1.5872,4466.8,4466.7,0.40278]
[1759861869805,1.5872,4466.8,4466.7,1.51668]
[1759861870006,1.5872,4466.8,4466.7,0.84718]
[1759861870209,1.5872,4466.8,4466.7,1.07718]
[1759861871099,0.6721,4466.2,4466.1,0.40282]
[1759861871303,1.5872,4466.2,4466.1,0.63282]
[1759861872199,0.6721,4466.2,4466.1,2.18212]
[1759861872400,3.2078,4466.4,4466.3,1.95211]
[1759861872603,4.3391,4466.4,4466.3,1.28671]
[1759861872805,1.1313,4466.4,4466.3,1.28671]
[1759861873204,3.2078,4466.9,4466.8,0.84717]
[1759861873502,3.2078,4467.4,4466.9,0.6654]
[1759861873705,4.3391,4467.4,4467.3,0.8839]
[1759861874403,3.2078,4467.4,4467.3,1.5493]
[1759861874600,3.2078,4467.4,4467.3,1.95202]
[1759861875198,4.3391,4467.4,4467.3,0.8839]
[1759861875513,1.5872,4467.3,4467.2,0.40273]
[1759861875708,1.5872,4467.3,4467.2,1.07713]
[1759861876005,1.5872,4467.3,4467.2,0.63273]
[1759861876310,2.05028637,4467.3,4467.2,0.63273]
[1759861877008,2.05028637,4467.3,4467.2,1.07713]
[1759861877612,2.05028637,4467.3,4467.2,0.84713]
[1759861877907,1.5872,4467.3,4467.2,1.07713]
[1759861878311,1.5872,4467.3,4467.2,0.63273]
[1759861879603,1.5872,4467.3,4467.2,0.40273]
[1759861879808,1.5872,4467.3,4467.2,0.63273]
[1759861881012,1.5872,4467.3,4467.2,1.07713]
[1759861882013,1.5872,4467.3,4467.2,1.51663]
[1759861882212,1.5872,4467.3,4467.2,1.28663]
[1759861882717,0.6721,4467.3,4467.2,2.18203]
[1759861883113,1.1313,4467.3,4467.2,2.18203]
[1759861883913,1.1313,4467.3,4467.2,1.51663]
[1759861884616,1.5872,4467.3,4467.2,1.51663]
[1759861885912,4.3391,4467.4,4467.3,1.28662]
[1759861886111,4.795,4467.4,4467.3,1.28662]
[1759861887110,3.2078,4467.4,4467.3,1.95202]
[1759861887311,3.2078,4467.4,4467.2,0.23]
[1759861887312,1.61078817,4467.9,4467.8,1.28658]
[1759861887512,0.02358817,4467.9,4467.8,2.18198]
[1759861888717,3.2078,4468.7,4468.6,1.9519]
[1759861888913,3.2078,4468.7,4468.6,2.1819]
[1759861889319,1.1313,4468.9,4468.8,1.95189]
[1759861889516,1.58888444,4468.9,4468.8,1.51897365]
[1759861889811,1.58888444,4468.9,4468.8,0.63507365]
[1759861890016,1.58888444,4468.9,4468.8,1.07947365]
[1759861890212,1.58888444,4468.9,4468.8,0.84947365]
[1759861890414,1.58888444,4468.9,4468.8,1.51897365]
[1759861890718,1.58888444,4468.9,4468.8,0.23248365]
[1759861891017,1.58888444,4468.9,4468.8,0.00248365]
[1759861891216,1.58888444,4468.9,4468.8,0.23248365]
[1759861891719,0.6721,4469.4,4469.3,0.8839]
[1759861892015,1.1313,4469.6,4469.5,0.8839]
[1759861892609,1.5872,4469.6,4469.5,0.8839]
[1759861892811,1.58878777,4469.6,4469.5,0.8839]
[1759861893009,0.00158777,4469.6,4469.5,1.5349]
[1759861893319,0.00158777,4469.6,4469.5,1.6987]
[1759861893615,1.5892,4470.8,4470.7,0.82572]
[1759861893812,1.5892,4470.8,4470.7,0.40242]
[1759861894013,0.6897,4470.8,4470.7,1.25392]
[1759861894214,3.2078,4471.6,4471.4,0.40235]
[1759861894421,1.3956,4471.5,4471.4,0.4233]
[1759861894718,1.5892,4470.8,4470.7,40.8]
[1759861894921,4.797,4470.8,4470.7,41.03]
[1759861895118,4.797,4470.8,4470.7,40.8]
[1759861895317,4.797,4470.8,4470.2,0.06536001]
[1759861895318,1.99165,4470.3,4470.2,0.06536001]
[1759861895618,4.797,4470.3,4470.2,0.06536001]
[1759861895820,1.8444,4470.0,4469.9,0.40248]
[1759861896021,0.2552,4469.5,4469.4,0.40253]
[1759861896322,1.8444,4469.5,4469.4,1.05583]
[1759861896720,1.3937,4469.5,4469.4,1.48403]
[1759861897028,1.18566338,4472.5,4469.4,1.48403]
[1759861897029,1.1404,4470.2,4470.1,1.25397]
[1759861897324,1.1404,4470.2,4470.1,1.48397]
[1759861897520,1.1404,4470.2,4470.1,0.63247]
[1759861897521,0.6897,4470.2,4470.1,0.63247]
[1759861897721,3.2078,4470.3,4470.1,0.63247]
[1759861897923,3.2078,4470.3,4470.2,0.651]
[1759861898317,0.6897,4470.2,4470.1,0.63247]
[1759861898521,3.2078,4470.3,4470.2,0.651]
[1759861898725,0.2552,4471.0,4470.8,0.40241]
[1759861898726,3.2078,4470.9,4470.8,0.40241]
[1759861899021,3.8799,4470.9,4470.8,0.63241]
[1759861899622,3.8799,4470.9,4470.8,0.23]
[1759861900317,3.2078,4470.9,4470.8,0.8757]
[1759861900524,4.28226,4471.4,4470.8,0.8757]
[1759861900721,4.28226,4471.4,4471.2,0.40237]
[1759861900722,0.6721,4471.3,4471.2,0.40237]
[1759861901029,3.2078,4471.4,4471.3,0.6457]
[1759861901327,3.2078,4471.4,4471.2,0.23]
[1759861901328,0.6721,4471.3,4471.2,0.23]
[1759861902023,0.6721,4471.3,4471.2,0.8757]
[1759861902218,3.2078,4471.4,4471.3,0.40236]
[1759861902419,3.8799,4471.4,4471.3,0.40236]
[1759861903727,3.8799,4471.4,4471.3,1.23866]
[1759861904221,0.00245424,4471.6,4471.5,1.88434]
[1759861904431,0.67455424,4471.6,4471.5,1.88434]
[1759861905024,0.00245424,4471.6,4471.5,7.22410682]
[1759861905819,3.2078,4471.9,4471.8,0.40232]
[1759861906025,3.2078,4472.4,4472.3,1.04797]
[1759861906226,3.2078,4472.4,4472.3,1.27797]
[1759861906518,3.8799,4472.4,4472.3,0.8757]
[1759861906932,3.88155181,4472.4,4472.3,0.2322467]
[1759861907627,3.88155181,4472.4,4472.3,0.0022467]
[1759861907930,3.88155181,4472.4,4472.3,0.2322467]
[1759861908728,4.73865181,4472.4,4472.3,0.2322467]
[1759861908929,4.73865181,4472.4,4472.3,0.6582467]
[1759861909532,4.73865181,4472.4,4472.3,1.0685467]
[1759861909735,3.88155181,4472.4,4472.3,1.7142467]
[1759861910530,3.20945181,4472.4,4472.3,1.7142467]
[1759861910731,0.00165181,4472.4,4472.3,1.7142467]
[1759861911133,4.73865181,4472.4,4472.3,0.0022467]
[1759861911335,4.73865181,4472.4,4472.3,0.8385467]
[1759861911635,1.08695181,4472.4,4472.3,1.4842467]
[1759861911834,1.08695181,4472.4,4472.3,1.7142467]
[1759861912236,3.2298,4472.9,4472.4,1.00566]
[1759861912427,3.2298,4472.9,4472.5,0.1638]
[1759861912634,0.6721,4472.8,4472.7,0.40223]
[1759861912934,0.6721,4472.8,4472.7,0.63223]
[1759861913127,0.6721,4472.8,4472.7,1.27793]
[1759861913333,0.00222683,4472.8,4472.7,1.27793]
[1759861914327,0.67432683,4472.8,4472.7,0.63223]
[1759861915237,0.00222683,4472.8,4472.7,1.27793]
[1759861916338,0.00222683,4472.8,4472.7,2.11423]
[1759861917039,0.00222683,4472.8,4472.7,1.88423]
[1759861917232,0.6836,4472.5,4472.3,0.0022467]
[1759861917544,0.6721,4472.4,4472.3,0.6345167]
[1759861917735,0.6721,4472.4,4472.3,1.2802167]
[1759861918331,0.6721,4472.4,4472.3,0.2322467]
[1759861918841,0.00222683,4472.8,4472.6,0.40224]
[1759861919042,0.6721,4472.7,4472.6,0.40224]
[1759861919430,1.07434,4472.6,4472.5,0.40225]
[1759861919637,1.07434,4472.6,4472.5,0.63225]
[1759861919836,0.6721,4472.6,4472.5,0.63225]
[1759861920338,0.00222683,4472.8,4472.7,1.04794]
[1759861921542,0.00222683,4472.8,4472.7,41.84794]
[1759861924734,0.022,4472.9,4472.8,1.453]
[1759861924939,0.022,4472.9,4472.8,4.8908]
[1759861925241,0.022,4472.9,4472.8,4.6608]
[1759861925442,0.022,4472.9,4472.8,4.8908]
[1759861925843,0.0243051,4472.9,4472.8,4.8908]
[1759861927450,1.0982051,4472.9,4472.8,4.6608]
[1759861927640,0.6753051,4472.9,4472.8,4.8908]
[1759861927944,0.0243051,4472.9,4472.8,4.8908]
[1759861928146,0.0243051,4472.9,4472.8,4.6608]
[1759861928344,1.5434051,4472.9,4472.8,4.2678]
[1759861928544,1.5434051,4472.9,4472.8,3.8476]
[1759861928745,1.5434051,4472.9,4472.8,4.2678]
[1759861928944,0.6753051,4472.9,4472.8,4.8908]
[1759861929249,0.6753051,4472.9,4472.8,4.6608]
[1759861929548,0.0243051,4472.9,4472.8,4.8908]
[1759861929941,1.0982051,4472.9,4472.8,4.2678]
[1759861930243,1.75621902,4472.9,4472.7,0.40224]
[1759861930448,1.5191,4472.8,4472.7,0.81204]
[1759861930745,1.5191,4472.8,4472.7,1.46224]
[1759861931249,0.0243051,4472.9,4472.7,2.08524]
[1759861931442,0.0243051,4472.9,4472.8,1.453]
[1759861931637,0.48607229,4472.9,4472.8,1.453]
[1759861931850,1.55997229,4472.9,4472.8,0.83]
[1759861933344,1.55997229,4472.9,4472.7,0.40224]
[1759861933345,2.00517229,4472.9,4472.7,0.40224]
[1759861933545,2.00517229,4472.9,4472.7,0.81204]
[1759861933546,1.98086719,4472.8,4472.7,0.81204]
[1759861933746,1.98086719,4472.8,4472.7,2.08524]
[1759861933747,0.46176719,4472.8,4472.7,2.08524]
[1759861933946,0.0243051,4472.9,4472.8,1.453]
[1759861934143,3.4552,4473.5,4473.4,0.4098]
[1759861934144,3.2078,4473.5,4473.4,0.4098]
[1759861934449,3.2078,4473.5,4473.4,2.08517]
[1759861935038,3.8588,4473.5,4473.4,2.08517]
[1759861935240,0.651,4472.6,4472.4,0.40226]
[1759861935549,1.0739,4472.6,4472.5,1.683]
[1759861935750,0.651,4472.6,4472.5,42.483]
[1759861936045,1.72351,4473.0,4472.9,0.4098]
[1759861936249,1.72351,4473.0,4472.9,0.6398]
[1759861936442,1.72351,4473.0,4472.9,1.06]
[1759861937145,1.72351,4473.0,4472.4,0.40226]
[1759861937146,0.8984,4472.5,4472.4,0.40226]
[1759861937350,4.9743,4472.5,4472.4,0.63226]
[1759861937847,4.9743,4472.5,4472.4,1.04206]
[1759861938040,4.5514,4472.5,4472.4,1.46226]
[1759861938245,3.2078,4472.5,4472.4,2.08526]
[1759861939352,4.9743,4472.5,4472.4,1.04206]
[1759861939842,3.2078,4472.5,4472.4,2.08526]
[1759861942749,4.2817,4472.5,4472.4,1.46226]
[1759861943357,4.2817,4472.5,4472.4,2.08526]
[1759861943956,3.8588,4472.5,4472.4,2.08526]
[1759861944350,4.5291,4472.5,4472.4,1.46226]
[1759861944545,1.92136,4472.4,4472.3,0.0022467]
[1759861944760,1.92136,4472.4,4472.3,0.2322467]
[1759861944953,1.5191,4472.4,4472.3,0.2322467]
[1759861945158,1.92136,4472.4,4472.3,0.2322467]
[1759861945759,1.92142,4471.8,4471.7,1.20725872]
[1759861945960,1.5191,4471.7,4471.6,1.20725872]
[1759861946262,1.92143,4471.6,4471.5,1.20725872]
[1759861946760,1.92143,4471.6,4471.5,1.20891264]
[1759861947456,1.5191,4470.9,4470.8,1.58682573]
[1759861947654,0.651,4470.8,4470.7,1.81682573]
[1759861947855,0.651,4471.4,4470.9,0.83]
[1759861948055,1.0739,4471.2,4471.1,0.4098]
[1759861948254,1.0739,4471.2,4471.1,1.45528993]
[1759861948255,0.651,4471.2,4471.1,1.45528993]
[1759861948558,1.5191,4471.2,4471.1,0.00228993]
[1759861949468,1.0739,4471.2,4471.1,0.83228993]
[1759861949849,0.40235,4471.4,4471.2,0.40237]
[1759861950162,0.651,4471.4,4471.3,1.85536]
[1759861950858,3.2078,4472.1,4472.0,0.623]
[1759861951062,0.24996698,4473.5,4472.9,0.623]
[1759861951063,3.2078,4473.3,4472.9,0.623]
[1759861951253,0.24996698,4473.5,4473.4,0.40217]
[1759861951254,0.00256698,4473.5,4473.4,0.40217]
[1759861951449,0.00256698,4473.5,4473.4,1.25517]
[1759861951850,0.00256698,4473.5,4473.4,4.46297]
[1759861952057,0.651,4474.8,4474.3,0.623]
[1759861952353,0.46521676,4474.7,4474.6,1.02506]
[1759861952558,0.46521676,4474.7,4474.6,1.25506]
[1759861952952,0.46800013,4474.7,4474.6,1.25749779]
[1759861953662,0.46800013,4474.7,4474.6,1.02749779]
[1759861953859,0.46800013,4474.7,4474.6,1.25749779]
[1759861954260,1.18566338,4475.6,4474.7,0.6055]
[1759861954562,1.58761338,4475.9,4475.4,0.6055]
[1759861954760,1.18566338,4475.8,4475.5,0.229]
[1759861955063,0.40201,4475.2,4474.7,0.6055]
[1759861955252,0.6162,4475.1,4474.8,0.63104]
[1759861955459,0.6162,4475.1,4475.0,0.40203]
[1759861955661,0.00234045,4475.2,4475.1,0.6055]
[1759861955862,0.61854045,4475.2,4475.0,0.40203]
[1759861956063,0.61854045,4475.2,4475.1,0.229]
[1759861957554,0.61854045,4475.2,4475.0,0.40202]
[1759861957756,0.61854045,4475.2,4474.7,0.6055]
[1759861957959,0.61854045,4475.2,4474.6,44.01023779]
[1759861957960,0.6162,4474.9,4474.8,0.229]
[1759861959365,0.6666,4475.1,4474.8,0.8476]
[1759861959856,0.00234045,4475.2,4474.8,0.229]
[1759861960056,0.00234045,4475.2,4474.6,3.21023779]
[1759861960356,0.00234045,4475.2,4474.8,0.40204]
[1759861960357,0.6666,4474.9,4474.8,0.40204]
[1759861960560,0.6666,4475.5,4475.4,0.40199]
[1759861960765,0.6666,4475.5,4475.4,0.63099]
[1759861961057,0.6666,4475.5,4475.4,0.229]
[1759861961058,0.9265,4475.5,4475.4,0.229]
[1759861961562,0.92886923,4475.5,4475.4,0.229]
[1759861962867,0.00236923,4475.5,4475.4,0.8476]
[1759861963260,0.66896923,4475.5,4475.4,0.229]
[1759861963461,0.92886923,4475.5,4475.4,0.229]
[1759861963955,0.00236923,4475.5,4475.4,0.8476]
[1759861964157,0.92886923,4475.5,4475.4,0.63099]
[1759861965858,0.92886923,4475.5,4475.4,0.229]
[1759861967866,0.6666,4475.4,4475.3,0.631]
[1759861968661,0.00236923,4475.5,4475.4,0.6186]
[1759861968861,0.00236923,4475.5,4475.4,1.506]
[1759861969560,1.12196923,4475.5,4475.4,0.8874]
[1759861969760,1.38186923,4475.5,4475.4,0.8874]
[1759861971059,1.38186923,4475.5,4474.9,0.8874]
[1759861971060,1.3795,4475.0,4474.9,0.8874]
[1759861971260,1.3795,4475.0,4474.9,1.1164]
[1759861971461,1.1196,4475.0,4474.9,1.735]
[1759861971871,1.5216,4475.4,4475.3,0.8399]
[1759861972770,1.5216,4475.4,4475.3,1.2894]
[1759861972966,0.00236923,4475.5,4475.4,1.90799]
[1759861975274,0.00236923,4475.5,4475.4,42.70799]
[1759861975966,0.00236923,4475.5,4475.4,1.90799]
[1759861976669,0.00236923,4475.5,4475.4,2.13699]
[1759861978570,0.00236923,4475.5,4475.4,1.90799]
[1759861978771,0.00236923,4475.5,4475.4,2.13699]
[1759861979669,0.40193,4476.1,4476.0,1.506]
[1759861979972,1.95273,4476.1,4476.0,0.6669]
[1759861980568,1.07085849,4476.1,4476.0,1.51834]
[1759861980768,1.52385849,4476.1,4476.0,1.51834]
[1759861980963,1.12192849,4476.1,4476.0,2.13694]
[1759861981172,0.00232849,4476.1,4476.0,2.13694]
[1759861981769,0.40425849,4476.1,4476.0,2.13694]
[1759861981972,0.00232849,4476.1,4476.0,2.13694]
[1759861983268,0.229,4477.4,4476.0,2.13694]
[1759861983269,1.0379,4477.1,4477.0,0.859]
[1759861983472,1.1219,4476.5,4475.9,3.2078]
[1759861983674,1.2895,4476.0,4475.9,4.46875]
[1759861983872,1.2895,4476.0,4475.9,5.32385]
[1759861984069,0.4212,4476.5,4476.4,1.2609]
[1759861984376,0.67521443,4476.5,4476.4,1.2609]
[1759861984672,1.29191443,4476.5,4476.4,1.4899]
[1759861985073,1.74101443,4476.5,4476.4,1.0593]
[1759861985575,1.74101443,4476.5,4476.4,1.4899]
[1759861986078,0.6728,4476.0,4475.9,3.6362]
[1759861986278,0.6728,4476.0,4475.9,4.03815]
[1759861986279,1.7386,4476.0,4475.9,4.03815]
[1759861986478,1.7386,4476.0,4475.9,4.69775]
[1759861987274,0.25401443,4476.5,4475.9,4.69775]
[1759861987275,1.487,4476.4,4476.3,1.26091]
[1759861987479,1.487,4476.4,4476.3,1.48991]
[1759861987673,1.0379,4476.4,4476.3,1.48991]
[1759861988376,1.0379,4476.4,4476.3,2.11601]
[1759861988873,0.6167,4476.4,4476.3,2.11601]
[1759861990571,1.0379,4476.4,4476.3,2.11601]
[1759861990770,1.0379,4476.4,4476.3,1.48991]
[1759861992074,1.7386,4475.5,4475.4,3.6362]
[1759861992275,1.7386,4475.5,4475.4,4.03819]
[1759861992482,1.7386,4475.5,4475.4,4.46879]
[1759861993874,1.7386,4475.5,4475.4,4.69779]
[1759861993875,2.14058,4475.5,4475.4,4.69779]
[1759861994280,2.14058,4475.5,4475.4,3.4368]
[1759861994681,2.14058,4475.5,4475.4,3.83879]
[1759861995082,1.7386,4475.5,4475.4,4.26719]
[1759861995279,1.7386,4475.5,4475.4,4.03819]
[1759861995579,1.7386,4475.5,4475.4,4.26719]
[1759861995776,0.2516,4475.0,4474.9,1.19793549]
[1759861995978,1.487,4474.7,4474.6,1.20037328]
[1759861996185,1.487,4474.7,4474.6,0.00243779]
[1759861996577,1.487,4474.7,4474.6,1.09043779]
[1759861996777,1.487,4474.7,4474.6,0.65983779]
[1759861996974,1.487,4474.7,4474.6,0.23143779]
[1759861997174,1.487,4474.7,4474.6,0.00243779]
[1759861997380,1.487,4474.7,4474.6,0.23143779]
[1759861997783,1.487,4474.7,4474.6,0.00243779]
[1759861997982,1.0379,4474.7,4474.6,1.09043779]
[1759861998375,1.0379,4474.7,4474.6,1.71653779]
[1759861998878,1.0379,4474.7,4474.6,2.69795086]
[1759861999079,1.487,4474.7,4474.6,0.23143779]
[1759861999787,0.6167,4474.7,4474.6,1.71653779]
[1759861999982,0.2516,4475.0,4474.9,0.859]
[1759862000278,0.6728,4475.0,4474.9,1.49004]
[1759862000486,1.2895,4475.0,4474.9,1.49004]
[1759862001987,1.2895,4475.0,4474.9,0.63104]
[1759862001988,1.7386,4475.0,4474.9,0.63104]
[1759862002577,1.2895,4475.0,4474.9,1.05944]
[1759862002781,1.7386,4475.0,4474.9,0.83044]
[1759862003088,1.7386,4475.0,4474.9,0.63104]
[1759862004478,1.7386,4475.0,4474.9,1.05944]
[1759862004680,1.7386,4475.0,4474.9,1.49004]
[1759862005189,1.7386,4475.0,4474.9,1.05944]
[1759862005392,0.6167,4474.7,4474.6,1.60995086]
[1759862005584,1.88906,4474.7,4474.6,0.00243779]
[1759862008795,1.88906,4474.7,4474.6,0.43083779]
[1759862008796,1.0379,4474.7,4474.6,0.43083779]
[1759862008992,1.487,4474.7,4474.6,2.03835086]
[1759862009190,1.487,4474.7,4474.6,2.69540609]
[1759862010003,1.487,4474.7,4474.6,2.26480609]
[1759862011204,1.487,4474.7,4474.6,0.65983779]
[1759862011400,1.487,4474.7,4474.6,2.26490735]
[1759862011603,1.487,4474.7,4474.6,1.60750735]
[1759862011803,1.487,4474.7,4474.6,0.00243779]
[1759862012197,1.487,4474.7,4474.6,2.03590735]
[1759862013404,1.487,4474.7,4474.6,2.46650735]
[1759862014600,3.4594,4475.0,4474.6,3.07040735]
[1759862014801,0.637,4475.0,4474.9,1.86624]
[1759862014995,3.4594,4476.0,4475.3,1.8662]
[1759862015198,1.4665,4475.9,4475.8,0.4324]
[1759862015396,1.4665,4475.9,4475.8,0.83436]
[1759862015596,1.4665,4475.9,4475.8,1.26226]
[1759862015802,1.30701443,4476.5,4476.4,0.4324]
[1759862016009,2.12241443,4476.5,4476.3,0.63091]
[1759862016208,2.12241443,4476.5,4476.3,0.229]
[1759862017303,0.637,4476.0,4475.9,1.20355008]
[1759862017503,1.7243,4476.0,4475.9,1.63595008]
[1759862018207,1.7243,4476.0,4475.9,1.20355008]
[1759862018408,1.23145,4475.9,4475.8,1.20355008]
[1759862018610,1.86845,4475.9,4475.8,1.20355008]
[1759862018909,0.8295,4475.9,4475.7,0.40196]
[1759862019106,0.8295,4475.7,4475.6,0.229]
[1759862019411,1.4665,4475.7,4475.6,0.229]
[1759862020110,1.4665,4475.7,4475.6,1.0893]
[1759862020809,1.4665,4475.7,4475.6,0.6614]
[1759862021807,1.4665,4475.7,4475.6,0.63097]
[1759862022807,1.4665,4475.7,4475.6,1.48027]
[1759862023013,0.637,4475.7,4475.6,2.10437]
[1759862023210,1.0583,4475.7,4475.6,2.10437]
[1759862023705,1.4631,4475.7,4475.6,1.48027]
[1759862024106,1.7064,4476.0,4475.9,0.81615]
[1759862024404,4.08431443,4476.5,4476.4,0.8161]
[1759862024616,4.91041443,4476.5,4476.4,0.8161]
[1759862025011,4.91041443,4476.5,4476.3,0.229]
[1759862025012,1.228,4476.4,4476.3,0.229]
[1759862025214,1.8505,4476.4,4476.3,0.229]
[1759862025713,1.22803,4476.1,4476.0,1.20440578]
[1759862025916,1.85053,4476.1,4476.0,1.20440578]
[1759862026113,1.85053,4476.1,4475.0,3.87426251]
[1759862026114,1.6981,4476.0,4475.9,1.20440578]
[1759862026315,1.4486,4475.8,4475.7,1.83536578]
[1759862026517,1.4486,4475.8,4475.7,2.24956578]
[1759862027314,1.4486,4475.8,4475.7,1.04516]